bitfinex-derivatives/quotes_SOLF0:USTF0_20250720
["timestamp","ask_amount","ask_price","bid_price","bid_amount"]
[1753052854657,5.74783767,179.89,179.76,2.98]
[1753052854858,3.12,179.88,179.76,2.98]
[1753052855055,5.5577,179.84,179.79,5.5588]
[1753052855362,3.12,179.88,179.78,2.98]
[1753052855552,3.12,179.88,179.81,2.98]
[1753052855753,3.12,179.91,179.83,5.74783767]
[1753052855956,0.96772848,179.94,179.84,2.98]
[1753052856262,0.96772848,179.94,179.83,5.74783767]
[1753052856263,3.12,179.94,179.87,2.98]
[1753052856563,3.12,179.97,179.9,2.98]
[1753052857259,3.12,180.0,179.91,8.5351]
[1753052857663,5.5533,179.98,179.92,2.98]
[1753052857960,3.12,180.0,179.92,2.98]
[1753052858464,3.12,180.0,179.93,2.98]
[1753052859758,5.5536,179.97,179.93,2.98]
[1753052860261,5.5536,179.97,179.91,2.98]
[1753052860262,3.12,179.97,179.91,2.98]
[1753052861062,3.12,179.97,179.9,2.98]
[1753052861366,5.5537,179.97,179.94,2.98]
[1753052861562,5.5537,179.97,179.95,2.98]
[1753052861752,3.12,180.02,179.9,2.98]
[1753052862162,3.12,179.99,179.9,2.98]
[1753052862358,3.12,179.99,179.87,2.98]
[1753052862557,5.5544,179.94,179.89,5.5559]
[1753052862762,3.12,179.97,179.86,5.74783767]
[1753052862962,3.12,179.97,179.87,2.98]
[1753052863154,5.5541,179.95,179.92,2.98]
[1753052863360,5.5541,179.95,179.93,2.98]
[1753052863559,5.74783767,180.0,179.89,5.74783767]
[1753052863765,11.1021,180.05,179.89,5.74783767]
[1753052863766,3.12,179.98,179.95,2.98]
[1753052864063,5.5537,179.97,179.95,2.98]
[1753052864257,11.1021,180.05,179.95,2.98]
[1753052864462,3.12,180.02,179.91,2.98]
[1753052864665,3.12,180.02,179.93,5.74783767]
[1753052864859,3.12,180.02,179.94,2.98]
[1753052865054,3.12,180.02,179.95,5.5539]
[1753052865255,3.12,180.02,179.94,2.98]
[1753052865559,5.5528,180.0,179.95,5.5539]
[1753052865765,5.5528,180.0,179.96,2.98]
[1753052865959,5.5528,180.0,179.94,2.98]
[1753052866154,5.74783767,180.03,179.95,2.98]
[1753052866359,3.12,179.98,179.95,2.98]
[1753052866761,8.6737,179.97,179.95,2.98]
[1753052866962,3.12,180.02,179.9,2.98]
[1753052867664,5.5543,179.95,179.93,2.98]
[1753052867867,5.5543,179.95,179.94,2.98]
[1753052868166,5.5537,179.97,179.9,2.98]
[1753052868565,3.12,179.99,179.9,2.98]
[1753052868762,3.12,179.99,179.95,2.98]
[1753052868958,3.12,180.02,179.92,2.98]
[1753052869166,3.48774613,179.99,179.92,2.98]
[1753052869365,3.12,179.98,179.92,2.98]
[1753052869861,3.12,179.98,179.92,8.535]
[1753052870264,3.12,179.98,179.92,2.98]
[1753052870561,3.48774613,179.95,179.85,3.48774613]
[1753052870775,3.12,179.95,179.86,2.98]
[1753052870970,5.5546,179.94,179.9,5.5554]
[1753052871267,6.60774613,179.99,179.9,2.98]
[1753052871467,3.48774613,179.97,179.88,2.98]
[1753052871667,3.12,179.96,179.88,2.98]
[1753052871964,5.5539,179.96,179.88,2.98]
[1753052872178,3.12,179.98,179.9,2.98]
[1753052872468,5.5543,179.95,179.91,5.5551]
[1753052872668,3.12,179.98,179.9,2.98]
[1753052873167,3.12,179.98,179.91,2.98]
[1753052873665,5.5546,179.94,179.92,2.98]
[1753052874160,3.12,179.97,179.92,2.98]
[1753052874365,5.5547,179.93,179.92,2.98]
[1753052874662,3.12,179.99,179.91,3.48774613]
[1753052874859,3.12,180.01,179.92,2.98]
[1753052875465,3.12,180.01,179.95,5.5541]
[1753052875770,3.12,180.01,179.94,2.98]
[1753052875972,8.6724,180.01,179.97,5.5533]
[1753052876266,3.12,180.05,179.96,3.01967822]
[1753052876568,3.12,180.05,179.98,5.5529]
[1753052876973,3.12,180.05,179.99,2.98]
[1753052877171,3.48774613,180.09,179.99,2.98]
[1753052877372,3.12,180.08,180.0,2.98]
[1753052877673,5.5509,180.06,180.03,5.5516]
[1753052877869,5.5509,180.06,180.04,2.98]
[1753052878268,3.05,180.11,180.06,2.96]
[1753052878573,3.05,180.11,180.03,3.48774613]
[1753052878574,3.05,180.1,180.07,2.96]
[1753052878768,5.5501,180.08,180.07,2.96]
[1753052878967,3.05,180.09,180.07,2.99927859]
[1753052879169,0.03899441,180.1,180.07,2.99927859]
[1753052879361,0.03899441,180.1,180.09,2.96]
[1753052879571,3.05,180.15,180.09,6.44774613]
[1753052879767,5.5487,180.13,180.11,2.96]
[1753052879969,3.48774613,180.19,180.11,2.96]
[1753052880170,3.05,180.12,180.06,2.96]
[1753052880363,3.05,180.09,180.03,2.96]
[1753052880562,3.48774613,180.08,180.04,2.96]
[1753052880762,8.6,180.09,180.05,2.96]
[1753052880963,6.53774613,180.15,180.05,2.96]
[1753052881170,3.05,180.14,180.05,3.48774613]
[1753052881371,3.05,180.14,180.06,2.96]
[1753052881670,3.05,180.09,180.08,0.03703536]
[1753052881867,12.08754613,180.09,180.08,0.03703536]
[1753052882063,6.53774613,180.09,180.03,2.96]
[1753052882469,5.5501,180.08,180.07,0.040841]
[1753052882671,3.05,180.11,180.08,2.96]
[1753052882872,5.5498,180.09,180.08,2.96]
[1753052883076,3.05,180.14,180.08,2.96]
[1753052883773,3.05,180.19,180.08,2.96]
[1753052883978,5.5478,180.16,180.08,2.96]
[1753052884164,3.05,180.19,180.08,2.96]
[1753052884371,3.05,180.18,180.08,2.96]
[1753052884571,3.05,180.18,180.1,0.04209484]
[1753052884873,3.05,180.18,180.11,2.96]
[1753052886173,3.05,180.18,180.1,5.77275157]
[1753052886378,373.48,180.23,180.13,2.96]
[1753052886379,3.05,180.2,180.13,2.96]
[1753052886675,5.5478,180.16,180.14,2.96]
[1753052886876,3.05,180.22,180.11,2.96]
[1753052887171,3.05,180.22,180.13,0.03918302]
[1753052887172,5.5481,180.15,180.13,0.03918302]
[1753052887378,5.5481,180.15,180.14,2.96]
[1753052887767,5.5477,180.16,180.14,2.96]
[1753052887969,3.05,180.18,180.15,2.96]
[1753052888274,3.05,180.22,180.16,2.96]
[1753052888866,5.5467,180.19,180.16,2.96]
[1753052889071,3.05,180.25,180.17,3.00211147]
[1753052889373,5.5464,180.2,180.17,3.00211147]
[1753052889671,3.05,180.24,180.17,2.96]
[1753052889877,5.5464,180.21,180.17,2.99992633]
[1753052890072,5.5464,180.21,180.19,2.96]
[1753052890578,11.0858,180.32,180.19,2.96]
[1753052890579,3.05,180.32,180.2,2.96]
[1753052890872,5.5433,180.3,180.25,5.5446]
[1753052891176,3.05,180.33,180.29,2.96]
[1753052891373,5.5421,180.34,180.29,5.5436]
[1753052891568,8.5921,180.34,180.29,5.5436]
[1753052891768,8.5921,180.34,180.32,2.96]
[1753052891769,3.05,180.34,180.32,2.96]
[1753052891973,8.592,180.35,180.32,2.96]
[1753052892274,8.592,180.35,180.31,5.543]
[1753052892275,0.96533933,180.36,180.34,2.96]
[1753052892470,4.01533933,180.36,180.3,0.0355212]
[1753052892781,3.05,180.35,180.3,0.0355212]
[1753052893188,5.73065673,180.33,180.22,2.96]
[1753052893484,3.05,180.28,180.22,2.96]
[1753052893689,5.73065673,180.29,180.22,2.96]
[1753052893874,3.05,180.25,180.22,2.96]
[1753052894185,5.5464,180.2,180.19,2.96]
[1753052894386,3.05,180.22,180.16,2.96]
[1753052894786,3.05,180.26,180.16,2.96]
[1753052894978,3.05,180.26,180.15,5.73065673]
[1753052894979,3.05,180.26,180.17,0.03639321]
[1753052895185,3.05,180.26,180.18,2.96]
[1753052895483,3.05,180.29,180.19,2.96]
[1753052896276,106.06,180.34,180.22,0.03848155]
[1753052896277,5.73065673,180.28,180.22,0.03848155]
[1753052896482,3.05,180.27,180.22,0.03848155]
[1753052896682,3.05,180.23,180.17,5.5473]
[1753052896883,3.05,180.23,180.19,2.96]
[1753052897083,5.5466,180.2,180.17,2.96]
[1753052897285,5.5466,180.2,180.19,0.03912037]
[1753052897481,3.05,180.28,180.19,2.99912037]
[1753052897779,3.05,180.28,180.21,2.96]
[1753052898287,3.05,180.28,180.23,0.03940587]
[1753052898984,8.5951,180.24,180.23,0.03940587]
[1753052899488,3.05,180.27,180.25,2.96]
[1753052900082,5.5448,180.26,180.25,2.96]
[1753052900590,3.05,180.29,180.27,2.96]
[1753052900781,5.5435,180.3,180.28,2.96]
[1753052900984,3.05,180.32,180.29,2.96]
[1753052901183,3.05,180.31,180.29,2.96]
[1753052901785,3.05,180.31,180.27,3.00244725]
[1753052902187,5.5435,180.3,180.28,2.96]
[1753052902387,3.05,180.31,180.28,2.96]
[1753052902581,3.05,180.35,180.27,0.04244725]
[1753052902784,3.05,180.28,180.27,0.04244725]
[1753052903293,8.5934,180.3,180.27,3.00244725]
[1753052903692,5.5429,180.32,180.29,2.96]
[1753052903991,3.05,180.34,180.3,2.96]
[1753052904192,3.05,180.32,180.3,2.96]
[1753052904392,3.05,180.35,180.3,0.03969856]
[1753052904786,8.593,180.31,180.3,0.03969856]
[1753052905589,3.05,180.34,180.3,2.99969856]
[1753052905790,3.05,180.34,180.3,0.03969856]
[1753052906091,5.5429,180.32,180.3,0.03969856]
[1753052906287,8.5929,180.32,180.3,0.03969856]
[1753052906488,3.05,180.35,180.3,2.99969856]
[1753052906690,0.96533933,180.36,180.31,2.96]
[1753052907195,5.73065673,180.41,180.33,2.96]
[1753052907397,3.05,180.4,180.33,2.96]
[1753052907785,3.05,180.38,180.3,2.96]
[1753052907988,5.73065673,180.36,180.35,0.03560002]
[1753052908187,5.73065673,180.36,180.29,3.08]
[1753052908392,5.73065673,180.36,180.27,3.08]
[1753052908593,2.96,180.35,180.27,3.08]
[1753052908793,5.5433,180.3,180.26,3.08]
[1753052908991,2.96,180.33,180.27,3.08]
[1753052909193,117.0596,180.42,180.24,3.08]
[1753052909194,5.5443,180.27,180.24,3.08]
[1753052909500,2.96,180.3,180.2,3.08]
[1753052909697,9.01875114,180.31,180.22,3.08]
[1753052909896,3.47555114,180.31,180.22,3.08]
[1753052910292,5.5431,180.31,180.27,5.5441]
[1753052910496,117.0596,180.42,180.27,5.5441]
[1753052910694,2.96,180.34,180.31,3.08]
[1753052911099,3.47555114,180.35,180.25,3.08]
[1753052911303,2.96,180.37,180.27,3.47555114]
[1753052911595,5.5427,180.32,180.27,3.47555114]
[1753052911802,5.5427,180.32,180.29,3.08]
[1753052912000,5.5427,180.32,180.3,3.08]
[1753052912407,2.96,180.34,180.25,3.08]
[1753052912707,2.96,180.27,180.23,3.08]
[1753052912895,2.96,180.26,180.23,3.08]
[1753052913096,2.96,180.26,180.24,3.08]
[1753052913292,2.96,180.26,180.18,3.47555114]
[1753052913598,5.5443,180.27,180.22,3.08]
[1753052913796,5.5443,180.27,180.23,3.08]
[1753052914000,5.5445,180.26,180.25,3.08]
[1753052914205,2.96,180.28,180.25,3.08]
[1753052914908,5.5444,180.27,180.25,3.08]
[1753052915097,2.96,180.28,180.26,3.08]
[1753052915298,2.96,180.29,180.26,3.08]
[1753052915500,2.96,180.29,180.2,3.08]
[1753052915699,2.96,180.26,180.2,3.08]
[1753052916699,2.96,180.26,180.18,3.08]
[1753052916904,5.5461,180.21,180.18,3.08]
[1753052917098,5.5461,180.21,180.15,3.47555114]
[1753052917099,5.5461,180.21,180.19,3.08]
[1753052917299,2.96,180.21,180.17,3.08]
[1753052917499,2.96,180.24,180.16,3.08]
[1753052917702,2.96,180.27,180.2,3.08]
[1753052918300,2.96,180.27,180.23,3.08]
[1753052918510,3.47555114,180.31,180.21,3.47555114]
[1753052918708,2.96,180.3,180.22,3.08]
[1753052919001,2.96,180.3,180.25,3.08]
[1753052919204,2.96,180.32,180.25,3.08]
[1753052919406,367.6129,180.49,180.13,377.68780148]
[1753052919407,2.96,180.36,180.3,8.623]
[1753052919607,2.96,180.36,180.27,3.47555114]
[1753052919608,5.5423,180.34,180.31,3.08]
[1753052919905,2.96,180.34,180.28,3.08]
[1753052920500,5.5424,180.33,180.29,5.5434]
[1753052920697,2.96,180.34,180.31,3.08]
[1753052922005,2.96,180.33,180.24,3.08]
[1753052922202,3.47555114,180.28,180.24,3.08]
[1753052922403,2.96,180.27,180.2,5.5462]
[1753052922710,3.47555114,180.25,180.16,3.08]
[1753052922908,3.47555114,180.4,180.16,3.08]
[1753052922909,6.43555114,180.22,180.16,3.08]
[1753052923112,6.43555114,180.22,180.16,8.6276]
[1753052923300,2.96,180.22,180.16,3.08]
[1753052923502,2.96,180.22,180.13,373.16]
[1753052923503,8.506,180.22,180.17,5.547]
[1753052923705,2.96,180.22,180.14,3.08]
[1753052924809,8.506,180.22,180.12,3.08]
[1753052925005,2.96,180.24,180.12,3.08]
[1753052925203,2.96,180.24,180.15,3.08]
[1753052925402,0.03875809,180.19,180.15,3.08]
[1753052925607,0.03875809,180.19,180.18,5.547]
[1753052925810,0.03875809,180.19,180.18,3.08]
[1753052929402,2.96,180.18,180.11,3.08]
[1753052929606,0.03875809,180.19,180.11,3.08]
[1753052930101,5.5472,180.18,180.13,5.5484]
[1753052930308,2.96,180.16,180.14,3.08]
[1753052930508,2.96,180.18,180.14,3.08]
[1753052930714,2.96,180.18,180.11,3.08]
[1753052931106,5.72678142,180.19,180.11,3.08]
[1753052931309,5.72678142,180.16,180.08,108.94]
[1753052931516,2.96,180.15,180.08,108.94]
[1753052931815,0.9663848,180.16,180.1,8.6292]
[1753052932012,0.9663848,180.16,180.1,3.08]
[1753052932408,2.96,180.18,180.11,5.72678142]
[1753052932714,2.96,180.2,180.12,3.08]
[1753052933014,2.96,180.19,180.16,3.08]
[1753052933910,2.96,180.2,180.17,3.08]
[1753052934115,2.96,180.2,180.11,5.72678142]
[1753052934315,2.96,180.23,180.15,3.08]
[1753052934714,2.96,180.23,180.2,5.5462]
[1753052934921,2.96,180.23,180.21,3.08]
[1753052935121,2.96,180.23,180.19,8.6266]
[1753052935411,0.96607629,180.24,180.14,3.08]
[1753052935412,3.92607629,180.24,180.14,3.08]
[1753052936314,3.92607629,180.24,180.21,8.6261]
[1753052936516,2.96,180.23,180.13,5.72678142]
[1753052936712,2.96,180.23,180.14,3.08]
[1753052937217,0.96607629,180.24,180.23,5.5455]
[1753052937415,2.96,180.26,180.24,3.08]
[1753052937720,0.96588859,180.28,180.16,5.72678142]
[1753052937920,2.96,180.27,180.21,3.08]
[1753052938522,8.5043,180.27,180.21,8.6259]
[1753052938819,8.5043,180.27,180.21,3.08]
[1753052939312,8.5043,180.27,180.22,5.5456]
[1753052939515,3.13,180.26,180.16,5.72678142]
[1753052939722,3.13,180.25,180.22,3.09]
[1753052939918,3.13,180.25,180.2,3.09]
[1753052940221,3.13,180.27,180.19,5.72678142]
[1753052940420,3.13,180.27,180.2,3.09]
[1753052940616,3.13,180.3,180.27,5.5442]
[1753052940920,3.13,180.32,180.29,3.09]
[1753052941119,4.09547323,180.34,180.31,3.09]
[1753052941322,9.63777323,180.34,180.31,3.09]
[1753052941525,3.13,180.33,180.31,3.09]
[1753052942223,3.13,180.38,180.31,3.09]
[1753052943120,5.72678142,180.33,180.26,3.09]
[1753052943319,3.13,180.32,180.26,3.09]
[1753052943723,3.13,180.35,180.26,3.09]
[1753052944019,5.72678142,180.33,180.26,3.09]
[1753052944322,3.13,180.32,180.26,3.09]
[1753052944720,5.72678142,180.33,180.26,3.09]
[1753052944918,3.13,180.29,180.2,3.09]
[1753052945125,3.47671506,180.28,180.2,3.09]
[1753052945313,3.13,180.27,180.2,8.6363]
[1753052945514,3.13,180.27,180.2,3.09]
[1753052945718,5.5451,180.25,180.2,3.09]
[1753052945924,3.13,180.24,180.22,3.09]
[1753052946522,3.13,180.24,180.19,3.09]
[1753052946726,3.13,180.23,180.2,3.09]
[1753052947029,3.13,180.22,180.18,3.09]
[1753052947221,3.13,180.22,180.16,478.78]
[1753052947222,3.13,180.22,180.19,3.09]
[1753052947424,6.60671506,180.25,180.17,3.09]
[1753052948220,5.5457,180.23,180.18,5.5467]
[1753052948423,5.5457,180.23,180.2,3.09]
[1753052948623,5.5457,180.23,180.21,3.09]
[1753052948819,5.5452,180.24,180.22,3.09]
[1753052949029,3.13,180.24,180.2,3.09]
[1753052949326,3.13,180.23,180.21,3.09]
[1753052949521,8.6757,180.23,180.21,3.09]
[1753052949722,5.5457,180.23,180.21,3.09]
[1753052949926,5.5457,180.23,180.19,5.5467]
[1753052950224,5.5457,180.23,180.21,3.09]
[1753052950425,8.6758,180.22,180.19,3.09]
[1753052950725,5.5458,180.22,180.2,3.09]
[1753052951225,5.5456,180.23,180.2,3.09]
[1753052951526,5.5456,180.23,180.22,3.09]
[1753052952118,6.60671506,180.25,180.22,3.09]
[1753052952319,3.47671506,180.25,180.2,3.09]
[1753052952516,0.96552681,180.31,180.17,3.09]
[1753052952517,3.47671506,180.22,180.17,3.09]
[1753052952717,3.13,180.19,180.15,3.09]
[1753052952922,3.13,180.18,180.16,3.09]
[1753052953527,3.13,180.19,180.17,3.09]
[1753052953825,6.60671506,180.22,180.12,3.09]
[1753052954025,3.13,180.21,180.12,3.09]
[1753052954323,5.547,180.19,180.12,3.09]
[1753052955022,8.677,180.19,180.16,3.09]
[1753052955222,5.547,180.18,180.17,3.09]
[1753052955527,3.13,180.21,180.12,3.09]
[1753052955722,3.13,180.21,180.13,5.5483]
[1753052955917,3.13,180.21,180.12,3.09]
[1753052956424,3.47671506,180.19,180.13,3.09]
[1753052956628,3.13,180.18,180.1,105.78]
[1753052956824,3.13,180.18,180.11,3.09]
[1753052957626,5.548,180.15,180.1,109.25671506]
[1753052957828,3.13,180.17,180.11,3.09]
[1753052959029,3.13,180.19,180.13,3.09]
[1753052959224,3.13,180.16,180.1,108.87]
[1753052959525,8.6789,180.12,180.1,3.09]
[1753052959729,3.13,180.19,180.1,3.09]
[1753052959929,5.5478,180.16,180.1,3.09]
[1753052960627,5.5478,180.16,180.14,3.09]
[1753052961030,3.13,180.15,180.1,5.5494]
[1753052961231,3.13,180.14,180.12,3.09]
[1753052961832,3.13,180.13,180.1,3.09]
[1753052962032,3.13,180.13,180.09,3.09]
[1753052962324,3.13,180.15,180.12,3.09]
[1753052962528,3.13,180.15,180.1,5.5493]
[1753052962529,3.13,180.15,180.13,3.09]
[1753052962719,5.5482,180.14,180.13,3.09]
[1753052963526,3.47671506,180.17,180.09,5.5497]
[1753052963725,3.13,180.16,180.08,3.09]
[1753052963926,3.13,180.16,180.06,105.78]
[1753052963927,3.47671506,180.11,180.06,108.87]
[1753052964133,3.13,180.09,180.06,108.87]
[1753052964320,3.13,180.08,180.06,3.09]
[1753052964827,3.13,180.09,180.02,3.09]
[1753052965624,3.13,180.08,180.05,3.09]
[1753052965829,3.13,180.08,180.06,3.09]
[1753052966131,3.47671506,180.08,180.02,3.09]
[1753052966333,3.13,180.05,180.01,105.76]
[1753052966531,5.5505,180.07,180.03,5.5514]
[1753052966722,6.60671506,180.08,180.05,3.09]
[1753052967028,6.60671506,180.08,180.01,105.76]
[1753052967029,3.13,180.07,180.01,108.85]
[1753052967227,3.13,180.05,180.01,3.09]
[1753052967425,3.13,180.04,180.01,3.09]
[1753052967626,3.13,180.03,180.01,3.09]
[1753052968431,5.5519,180.02,180.01,3.09]
[1753052969531,3.21,180.04,179.97,2.98]
[1753052969723,3.21,180.01,179.93,2.98]
[1753052970330,5.5528,180.0,179.97,2.98]
[1753052970625,11.0988,180.11,179.96,5.5536]
[1753052970626,3.21,180.03,179.96,2.98]
[1753052970831,5.552,180.02,179.98,5.5531]
[1753052971026,8.762,180.02,180.0,2.98]
[1753052971638,5.5522,180.01,180.0,2.98]
[1753052971827,3.21,180.02,179.96,2.98]
[1753052972032,3.21,179.99,179.94,2.98]
[1753052972236,5.5539,179.96,179.94,2.98]
[1753052972534,3.47671506,180.0,179.94,2.98]
[1753052972728,3.47671506,180.0,179.93,5.5547]
[1753052972729,5.5538,179.96,179.93,5.5547]
[1753052972935,5.5538,179.96,179.94,2.98]
[1753052973234,3.21,179.96,179.94,2.98]
[1753052973625,3.21,179.96,179.95,2.98]
[1753052973828,3.21,179.97,179.95,2.98]
[1753052974134,3.21,179.96,179.91,2.98]
[1753052974328,3.21,179.93,179.88,2.98]
[1753052974531,3.47671506,179.92,179.86,2.98]
[1753052974931,3.21,179.91,179.82,2.98]
[1753052975130,3.21,179.88,179.79,2.98]
[1753052975333,3.21,179.88,179.8,2.98]
[1753052975735,3.47671506,179.86,179.8,2.98]
[1753052975943,3.21,179.84,179.79,105.76]
[1753052976537,8.7678,179.84,179.81,2.98]
[1753052976935,3.21,179.95,179.83,2.98]
[1753052977242,3.21,179.91,179.83,2.98]
[1753052977434,6.68671506,179.89,179.83,2.98]
[1753052977636,6.68671506,179.89,179.79,109.23671506]
[1753052977637,3.21,179.87,179.81,2.98]
[1753052977838,3.96844078,179.86,179.81,2.98]
[1753052978139,7.27560541,179.85,179.78,2.98]
[1753052978332,7.27560541,179.84,179.78,2.98]
[1753052978533,3.21,179.84,179.78,2.98]
[1753052978739,5.5579,179.83,179.79,5.559]
[1753052978932,3.47671506,179.86,179.78,2.98]
[1753052978933,3.21,179.86,179.78,2.98]
[1753052979129,4.05882916,179.85,179.78,2.98]
[1753052979328,3.21,179.9,179.85,2.98]
[1753052979535,4.05319546,179.89,179.85,2.98]
[1753052979736,4.05319546,179.88,179.85,2.98]
[1753052979933,3.47671506,179.98,179.91,2.98]
[1753052980138,7.37680475,179.97,179.91,2.98]
[1753052980334,3.21,179.95,179.92,2.98]
[1753052980543,4.16680475,179.94,179.93,2.98]
[1753052981840,4.32031064,179.94,179.93,2.98]
[1753052983139,4.32031064,179.94,179.93,6.45671506]
[1753052984041,3.21,180.0,179.93,3.47671506]
[1753052984233,3.21,180.0,179.94,2.98]
[1753052984745,5.5529,179.99,179.94,2.98]
[1753052984937,3.21,180.02,179.94,2.98]
[1753052985134,5.5523,180.01,179.97,5.5534]
[1753052985339,5.5523,180.01,180.0,2.98]
[1753052985836,3.21,180.04,179.96,3.47671506]
[1753052986040,3.21,180.04,180.01,2.98]
[1753052986240,5.5516,180.04,180.0,5.5523]
[1753052986442,3.21,180.09,180.02,2.98]
[1753052986941,3.21,180.04,180.0,2.98]
[1753052987144,3.21,180.04,180.01,2.98]
[1753052987342,3.21,180.04,180.02,2.98]
[1753052987541,3.21,180.1,180.02,2.98]
[1753052987943,3.21,180.1,180.03,2.98]
[1753052988541,5.5513,180.04,180.03,2.98]
[1753052988744,5.5513,180.04,179.99,3.47671506]
[1753052988936,5.5513,180.04,180.03,2.98]
[1753052989545,3.21,180.04,179.98,2.98]
[1753052989945,5.5523,180.01,179.98,2.98]
[1753052990143,3.47671506,180.09,179.99,3.47671506]
[1753052990447,5.5519,180.03,180.0,2.98]
[1753052990643,3.21,180.06,180.03,2.98]
[1753052991943,3.21,180.06,180.04,2.98]
[1753052992541,3.21,180.1,180.04,2.98]
[1753052993148,3.21,180.1,180.04,3.47671506]
[1753052993346,3.21,180.13,180.07,2.98]
[1753052993646,3.47671506,180.13,180.03,3.47671506]
[1753052993943,3.21,180.12,180.04,2.98]
[1753052994244,5.5507,180.06,180.04,2.98]
[1753052994444,3.21,180.13,180.06,2.98]
[1753052994749,5.5504,180.07,180.06,2.98]
[1753052995252,5.5513,180.04,180.03,2.98]
[1753052995444,3.21,180.06,180.0,2.98]
[1753052995944,5.5516,180.04,180.0,2.98]
[1753052996449,3.21,180.06,180.0,2.98]
[1753052996844,3.21,180.06,180.0,8.5325]
[1753052997051,3.21,180.06,180.0,5.5525]
[1753052997346,3.21,180.06,180.0,2.98]
[1753052997546,3.21,180.02,179.95,2.98]
[1753052997743,5.5537,179.97,179.93,3.47671506]
[1753052997948,5.5537,179.97,179.94,2.98]
[1753052998253,5.5537,179.97,179.93,3.47671506]
[1753052998254,3.21,180.0,179.93,3.47671506]
[1753052998448,3.0,180.02,179.95,2.99]
[1753052999453,5.5537,179.97,179.96,2.99]
[1753053000454,3.0,180.04,179.98,2.99]
[1753053000659,3.0,180.06,179.98,2.99]
[1753053000959,5.5512,180.05,180.01,2.99]
[1753053001260,3.0,180.13,180.03,2.99]
[1753053001456,5.5501,180.08,180.05,3.47671506]
[1753053001671,5.5501,180.08,180.07,2.99]
[1753053001869,3.0,180.13,180.07,2.99]
[1753053002070,5.5501,180.08,180.07,2.99]
[1753053002966,5.551,180.05,180.03,2.99]
[1753053003166,5.551,180.05,180.04,2.99]
[1753053003368,147.08486594,180.14,180.0,2.99]
[1753053003369,5.552,180.02,180.0,2.99]
[1753053003672,3.0,180.05,179.98,2.99]
[1753053003966,5.5528,180.0,179.98,2.99]
[1753053004164,3.0,180.04,179.98,2.99]
[1753053004965,5.5528,180.0,179.98,2.99]
[1753053005262,3.0,180.04,179.96,2.99]
[1753053005461,5.5525,180.01,179.96,5.5537]
[1753053005658,3.0,180.04,179.98,2.99]